bitfinex/quotes_BTCUSD_20251226
["timestamp","ask_amount","ask_price","bid_price","bid_amount"]
[1766739383684,0.01128,88721.0,88714.0,0.01127217]
[1766739383890,0.01128,88721.0,88715.0,0.01127205]
[1766739384096,0.00073618,88721.0,88716.0,0.01127192]
[1766739384537,0.00073618,88721.0,88715.0,0.01127205]
[1766739384871,0.01127027,88729.0,88718.0,0.01127166]
[1766739385096,0.06761538,88738.0,88725.0,0.08556078]
[1766739385304,0.02254887,88740.0,88730.0,0.08556014]
[1766739385509,0.01126887,88740.0,88731.0,0.07429]
[1766739385720,0.011269,88739.0,88731.0,0.07429]
[1766739385949,0.01126938,88736.0,88731.0,0.07429]
[1766739386386,0.06761706,88735.0,88731.0,0.073741]
[1766739386703,0.01126925,88737.0,88731.0,0.073741]
[1766739387048,0.01126938,88736.0,88731.0,0.073741]
[1766739387251,0.01126951,88735.0,88731.0,0.073741]
[1766739388105,0.01126938,88736.0,88731.0,0.073741]
[1766739389056,0.01126925,88737.0,88731.0,0.073741]
[1766739389261,0.01126938,88736.0,88731.0,0.073741]
[1766739390779,0.01126925,88737.0,88731.0,0.073741]
[1766739391711,0.01126938,88736.0,88731.0,0.073741]
[1766739392770,0.01126925,88737.0,88731.0,0.073741]
[1766739392908,0.01126938,88736.0,88731.0,0.073741]
[1766739393314,0.01126925,88737.0,88731.0,0.073741]
[1766739393545,0.01126912,88738.0,88731.0,0.073741]
[1766739396169,0.06761439,88739.0,88731.0,0.073741]
[1766739396365,0.01126925,88737.0,88731.0,0.073741]
[1766739397539,0.01126912,88738.0,88731.0,0.073741]
[1766739397767,0.01126963,88734.0,88731.0,0.073741]
[1766739398168,0.01126938,88736.0,88731.0,0.073741]
[1766739398395,0.01126963,88734.0,88731.0,0.073741]
[1766739399141,0.01126951,88735.0,88731.0,0.073741]
[1766739399917,0.01126938,88736.0,88731.0,0.073741]
[1766739401553,0.01126963,88734.0,88731.0,0.073741]
[1766739401997,0.01126951,88735.0,88731.0,0.073741]
[1766739403539,0.01126963,88734.0,88731.0,0.073741]
[1766739404140,0.01126912,88738.0,88734.0,0.000549]
[1766739404651,0.01126951,88735.0,88731.0,0.073741]
[1766739405416,0.01126938,88736.0,88731.0,0.073741]
[1766739406297,0.01126925,88737.0,88731.0,0.073741]
[1766739406446,0.01126951,88735.0,88731.0,0.073741]
[1766739406969,0.01126938,88736.0,88731.0,0.073741]
[1766739408392,0.011269,88739.0,88736.0,0.000549]
[1766739408757,0.01126925,88737.0,88731.0,0.073741]
[1766739408972,0.01126938,88736.0,88731.0,0.073741]
[1766739409368,0.01126951,88735.0,88731.0,0.073741]
[1766739410166,0.011269,88739.0,88735.0,0.000549]
[1766739410377,0.01126912,88738.0,88731.0,0.073741]
[1766739410584,0.06761433,88739.0,88731.0,0.073741]
[1766739410747,0.05634442,88740.0,88731.0,0.073741]
[1766739410973,0.01128,88743.0,88736.0,0.01126938]
[1766739411172,0.01126709,88754.0,88744.0,0.01126836]
[1766739411533,0.0003463,88749.0,88747.0,0.05633993]
[1766739411731,0.01128,88752.0,88748.0,0.01126785]
[1766739411903,0.01146684,88756.0,88749.0,0.06875]
[1766739412253,0.01126722,88753.0,88749.0,0.06875]
[1766739412446,0.01126697,88755.0,88740.0,0.02254919]
[1766739412447,0.0563412,88745.0,88740.0,0.02254919]
[1766739412649,0.0563412,88745.0,88740.0,0.02265038]
[1766739412887,0.01126824,88745.0,88740.0,0.02265038]
[1766739413213,0.01126811,88746.0,88740.0,0.02265038]
[1766739413415,0.01126785,88748.0,88740.0,0.02265038]
[1766739413644,0.06760604,88750.0,88740.0,0.02265038]
[1766739413986,0.01126773,88749.0,88740.0,0.02265038]
[1766739414359,0.01126785,88748.0,88740.0,0.02265038]
[1766739414538,0.01126785,88748.0,88740.0,0.03391925]
[1766739414742,0.01126785,88748.0,88740.0,0.02265038]
[1766739415193,0.01126811,88746.0,88740.0,0.02265038]
[1766739415361,0.01126798,88747.0,88740.0,0.02265038]
[1766739415561,0.01126773,88749.0,88740.0,0.02265038]
[1766739415762,0.01126798,88747.0,88740.0,0.02265038]
[1766739415948,0.06760684,88749.0,88740.0,0.02265038]
[1766739416482,0.01126811,88746.0,88740.0,0.02265038]
[1766739416911,0.01126785,88748.0,88740.0,0.02265038]
[1766739417047,0.01126798,88747.0,88740.0,0.02265038]
[1766739417283,0.01126785,88748.0,88740.0,0.02265038]
[1766739417478,0.01126798,88747.0,88740.0,0.02265038]
[1766739417702,0.01126785,88748.0,88740.0,0.02265038]
[1766739417921,0.01126798,88747.0,88740.0,0.02265038]
[1766739418322,0.01126785,88748.0,88740.0,0.02265038]
[1766739419240,0.01126785,88748.0,88740.0,0.03391925]
[1766739419813,0.01126773,88749.0,88741.0,0.01126874]
[1766739420495,0.01126773,88749.0,88740.0,0.03391925]
[1766739420934,0.01126773,88749.0,88741.0,0.01126874]
[1766739421276,0.01126785,88748.0,88740.0,0.03391925]
[1766739421796,0.01126785,88748.0,88740.0,0.02265038]
[1766739421970,0.01126773,88749.0,88740.0,0.03391925]
[1766739422142,0.01126798,88747.0,88740.0,0.02265038]
[1766739422358,0.01126785,88748.0,88740.0,0.02265038]
[1766739422661,0.01126811,88746.0,88740.0,0.02265038]
[1766739422870,0.01126798,88747.0,88740.0,0.02265038]
[1766739423240,0.00017465,88743.0,88740.0,0.02265038]
[1766739424252,6.5e-07,88743.0,88740.0,0.02265038]
[1766739425219,6.5e-07,88743.0,88740.0,0.02247638]
[1766739425549,0.01126914,88743.0,88740.0,0.02247638]
[1766739426169,0.01126874,88741.0,88725.0,0.13637435]
[1766739426341,0.01126912,88738.0,88729.0,0.01127027]
[1766739426545,0.011269,88739.0,88730.0,0.01127014]
[1766739426746,0.01126887,88740.0,88731.0,0.01127001]
[1766739426952,0.01126887,88740.0,88730.0,0.01127014]
[1766739427150,0.01126887,88740.0,88731.0,0.01127001]
[1766739427463,0.06761272,88741.0,88730.0,0.01127014]
[1766739427665,0.011269,88739.0,88731.0,0.01127001]
[1766739427877,0.01126887,88740.0,88731.0,0.01127001]
[1766739428337,0.02254862,88742.0,88733.0,0.01126976]
[1766739428654,0.01128,88742.0,88734.0,0.01126963]
[1766739428962,0.01126811,88746.0,88738.0,0.02254919]
[1766739429274,0.02254824,88745.0,88738.0,0.02254919]
[1766739429676,0.01126836,88744.0,88738.0,0.02254919]
[1766739429945,0.01128,88745.0,88738.0,0.02254919]
[1766739430330,0.01128,88745.0,88738.0,0.03381831]
[1766739430530,0.01126836,88744.0,88738.0,0.02254919]
[1766739430834,0.01128,88745.0,88738.0,0.02254919]
[1766739431204,0.01128,88745.0,88739.0,0.011269]
[1766739431942,0.00010117,88746.0,88745.0,0.000549]
[1766739432537,0.00010117,88746.0,88743.0,0.01126849]
[1766739432961,0.00010117,88746.0,88742.0,0.01126862]
[1766739433349,1.7e-07,88746.0,88741.0,0.01126874]
[1766739433567,1.7e-07,88746.0,88740.0,0.08001887]
[1766739433781,1.7e-07,88746.0,88740.0,0.06875]
[1766739434333,0.01126836,88744.0,88740.0,0.06875]
[1766739434821,0.01126849,88743.0,88740.0,0.06875]
[1766739435272,1.7e-07,88746.0,88740.0,0.06875]
[1766739436050,0.01126828,88746.0,88740.0,0.06875]
[1766739436717,1.7e-07,88746.0,88740.0,0.06875]
[1766739437067,0.01126828,88746.0,88740.0,0.06875]
[1766739437270,0.01126836,88744.0,88740.0,0.06875]
[1766739437489,0.01126824,88745.0,88740.0,0.06875]
[1766739437847,0.01126828,88746.0,88740.0,0.06875]
[1766739438057,0.01126824,88745.0,88740.0,0.06875]
[1766739438258,0.01126836,88744.0,88738.0,0.02254919]
[1766739438613,0.01126828,88746.0,88739.0,0.0698]
[1766739438760,1.7e-07,88746.0,88739.0,0.0698]
[1766739438962,0.01126828,88746.0,88739.0,0.0698]
[1766739439163,1.7e-07,88746.0,88739.0,0.0698]
[1766739440285,0.01126773,88749.0,88739.0,0.081069]
[1766739440496,0.02254747,88751.0,88743.0,0.01126849]
[1766739440771,0.02254747,88751.0,88742.0,0.01126862]
[1766739440963,0.01126773,88749.0,88741.0,0.08106874]
[1766739441175,0.01126773,88749.0,88741.0,0.0698]
[1766739441592,0.06760596,88750.0,88741.0,0.0698]
[1766739441857,0.0112676,88750.0,88741.0,0.12614342]
[1766739442055,0.0112676,88750.0,88741.0,0.08106874]
[1766739442239,0.0112676,88750.0,88742.0,0.01126862]
[1766739442394,0.0112676,88750.0,88741.0,0.08106874]
[1766739442660,0.0112676,88750.0,88742.0,0.01126862]
[1766739443004,0.06760486,88751.0,88742.0,0.08106862]
[1766739443207,0.01126747,88751.0,88742.0,0.08106862]
[1766739443366,0.01126773,88749.0,88742.0,0.0698]
[1766739443550,0.01126785,88748.0,88742.0,0.0698]
[1766739443998,0.01126798,88747.0,88742.0,0.0698]
[1766739444204,0.000101,88742.0,88738.0,0.02254919]
[1766739444403,0.06761289,88741.0,88734.0,0.0698]
[1766739444546,0.01126887,88740.0,88734.0,0.0698]
[1766739444966,0.01126874,88741.0,88734.0,0.0698]
[1766739445172,0.01126862,88742.0,88733.0,0.01128]
[1766739445376,0.01126887,88740.0,88734.0,0.0698]
[1766739445626,0.01126874,88741.0,88738.0,0.02254919]
[1766739445954,0.01126862,88742.0,88738.0,0.02254919]
[1766739446355,0.01126874,88741.0,88738.0,0.02254919]
[1766739446671,0.01126862,88742.0,88738.0,0.02254919]
[1766739446869,0.06761137,88743.0,88738.0,0.02254919]
[1766739447113,0.01126836,88744.0,88738.0,0.02254919]
[1766739447660,0.01126798,88747.0,88738.0,0.02254919]
[1766739447859,0.01126824,88745.0,88738.0,0.02254919]
[1766739448093,0.01126811,88746.0,88738.0,0.02254919]
[1766739448292,0.01126824,88745.0,88736.0,0.01126938]
[1766739448489,0.01126836,88744.0,88738.0,0.02254919]
[1766739448697,0.01126862,88742.0,88738.0,0.02254919]
[1766739448898,0.01126836,88744.0,88738.0,0.02254919]
[1766739449535,0.01126811,88746.0,88738.0,0.02254919]
[1766739449716,0.01126811,88746.0,88738.0,0.03381831]
[1766739450682,0.01126798,88747.0,88738.0,0.03381831]
[1766739451087,0.01126811,88746.0,88738.0,0.03381831]
[1766739451900,0.01126798,88747.0,88738.0,0.03381831]
[1766739452330,0.01126811,88746.0,88738.0,0.03381831]
[1766739452876,0.01126798,88747.0,88738.0,0.03381831]
[1766739453304,0.01126785,88748.0,88739.0,0.011269]
[1766739453449,0.01126722,88753.0,88748.0,0.000448]
[1766739453651,0.01126747,88751.0,88748.0,0.000448]
[1766739453845,0.01126785,88748.0,88743.0,0.0698]
[1766739454252,0.01126798,88747.0,88738.0,0.03381831]
[1766739454459,0.01126798,88747.0,88738.0,0.10361831]
[1766739454658,0.01126798,88747.0,88739.0,0.011269]
[1766739455284,0.01126798,88747.0,88738.0,0.10361831]
[1766739455682,0.01126811,88746.0,88738.0,0.10361831]
[1766739455888,0.01126798,88747.0,88738.0,0.10361831]
[1766739456130,0.01126773,88749.0,88739.0,0.081069]
[1766739456257,0.01126811,88746.0,88739.0,0.0698]
[1766739456451,0.01126824,88745.0,88738.0,0.02254919]
[1766739456803,0.01126849,88743.0,88738.0,0.02254919]
[1766739456969,0.01126862,88742.0,88738.0,0.02254919]
[1766739457162,0.01126874,88741.0,88738.0,0.02254919]
[1766739457743,0.01126862,88742.0,88738.0,0.02254919]
[1766739458094,0.06761305,88741.0,88738.0,0.02254919]
[1766739458301,0.01126874,88741.0,88738.0,0.02254919]
[1766739458489,0.06761209,88742.0,88738.0,0.02254919]
[1766739458890,0.01126862,88742.0,88738.0,0.02254919]
[1766739459881,0.01126824,88745.0,88738.0,0.02254919]
[1766739460527,0.01126811,88746.0,88738.0,0.02254919]
[1766739460770,0.01126785,88748.0,88738.0,0.03381831]
[1766739460973,0.05634056,88746.0,88738.0,0.02254919]
[1766739461129,0.01126836,88744.0,88733.0,0.01128]
[1766739461464,0.01126849,88743.0,88738.0,0.02254919]
[1766739462088,0.01126836,88744.0,88738.0,0.02254919]
[1766739462290,0.01126824,88745.0,88738.0,0.02254919]
[1766739462958,0.01126811,88746.0,88738.0,0.02254919]
[1766739463382,0.01126811,88746.0,88738.0,0.03381831]
[1766739463796,0.01126824,88745.0,88738.0,0.02254919]
[1766739463971,0.01126836,88744.0,88738.0,0.02254919]
[1766739464175,0.01126824,88745.0,88738.0,0.02254919]
[1766739464377,0.01126785,88748.0,88745.0,0.000549]
[1766739464576,0.05633815,88750.0,88745.0,0.00010117]
[1766739464763,0.01126785,88748.0,88745.0,0.00010117]
[1766739465906,0.06760751,88748.0,88745.0,0.00010117]
[1766739466861,0.0563404,88747.0,88745.0,0.00010117]
[1766739469655,0.05634047,88747.0,88745.0,0.00010117]
[1766739471318,0.01126785,88748.0,88745.0,0.00010117]
[1766739471518,0.02254773,88749.0,88745.0,0.00010117]
[1766739471947,0.01128,88749.0,88745.0,0.00010117]
[1766739472760,0.01126785,88748.0,88745.0,0.00010117]
[1766739474127,0.02254773,88749.0,88745.0,0.00010117]
[1766739474318,0.01126785,88748.0,88745.0,0.00010117]
[1766739475223,0.05633993,88747.0,88745.0,1.7e-07]
[1766739475817,0.06760762,88748.0,88745.0,1.7e-07]
[1766739476133,0.05634031,88747.0,88745.0,1.7e-07]
[1766739478968,0.06760762,88748.0,88745.0,1.7e-07]
[1766739480207,0.05634023,88747.0,88745.0,1.7e-07]
[1766739481138,0.06760762,88748.0,88745.0,1.7e-07]
[1766739482099,0.05634037,88747.0,88745.0,1.7e-07]
[1766739485109,0.01126785,88748.0,88745.0,1.7e-07]
[1766739485257,0.01126785,88748.0,88747.0,0.000101]
[1766739485608,0.07888596,88750.0,88710.0,0.02254919]
[1766739485609,0.01128,88750.0,88710.0,0.02254919]
[1766739485796,0.05635478,88724.0,88711.0,0.03382174]
[1766739485947,0.01127116,88722.0,88712.0,0.08048243]
[1766739486147,0.02200103,88723.0,88713.0,0.0804823]
[1766739486431,0.01128,88723.0,88716.0,0.06921]
[1766739486544,0.01128,88723.0,88719.0,0.01127154]
[1766739486747,0.011179,88723.0,88719.0,0.01127154]
[1766739486953,0.01128,88723.0,88720.0,0.01127141]
[1766739490061,0.00697142,88723.0,88720.0,0.01127141]
[1766739490195,0.00423949,88723.0,88720.0,0.01127141]
[1766739491350,0.00423949,88723.0,88719.0,0.0676288]
[1766739491351,0.00423949,88723.0,88718.0,0.01127166]
[1766739492931,0.00423949,88723.0,88719.0,0.01127154]
[1766739493150,0.00423949,88723.0,88720.0,0.01127141]
[1766739496079,0.01127166,88733.0,88723.0,0.06911]
[1766739496238,0.01128,88732.0,88729.0,0.01127027]
[1766739496442,9.713e-05,88732.0,88728.0,0.08038039]
[1766739496684,9.713e-05,88732.0,88728.0,0.06911]
[1766739496845,9.713e-05,88732.0,88728.0,0.08038039]
[1766739497227,9.713e-05,88732.0,88728.0,0.06911]
[1766739497694,9.713e-05,88732.0,88728.0,0.08038039]
[1766739497872,9.713e-05,88732.0,88728.0,0.06911]
[1766739498076,9.713e-05,88732.0,88728.0,0.08038039]
[1766739499555,9.713e-05,88732.0,88728.0,0.06911]
[1766739499793,9.713e-05,88732.0,88728.0,0.08038039]
[1766739500888,9.713e-05,88732.0,88729.0,0.01127027]
[1766739501325,2.95342891,88799.0,88738.0,0.01126912]
[1766739501326,0.01126747,88751.0,88738.0,0.01126912]
[1766739501529,0.0002,88742.0,88739.0,0.12545501]
[1766739501912,0.0002,88742.0,88739.0,0.13672401]
[1766739502394,0.0002,88742.0,88739.0,0.080379]
[1766739502525,0.0002,88742.0,88739.0,0.06911]
[1766739503222,0.0002,88742.0,88739.0,0.080379]
[1766739503374,0.0002,88742.0,88739.0,0.06911]
[1766739503574,0.0002,88742.0,88739.0,0.13672368]
[1766739504712,0.0002,88742.0,88739.0,0.080379]
[1766739505027,0.0112676,88750.0,88739.0,0.080379]
[1766739505028,0.01128,88745.0,88742.0,0.06761172]
[1766739506552,0.01128,88745.0,88743.0,0.05634201]
[1766739506995,0.001099,88743.0,88740.0,0.05634392]
[1766739507214,0.001099,88743.0,88740.0,0.01126887]
[1766739507385,0.01128,88745.0,88741.0,0.01126874]
[1766739507582,0.01128,88745.0,88742.0,0.01126862]
[1766739508016,0.000549,88742.0,88741.0,0.01126874]
[1766739508439,0.01128,88745.0,88742.0,0.01126862]
[1766739509721,0.01128,88745.0,88740.0,0.06761283]
[1766739509722,0.01128,88745.0,88740.0,0.01126887]
[1766739509885,0.000549,88742.0,88740.0,0.01126887]
[1766739510083,0.01128,88745.0,88739.0,0.10292819]
[1766739510588,0.01128,88745.0,88739.0,0.09165919]
[1766739510779,0.02254824,88745.0,88739.0,0.09111019]
[1766739511383,0.01128,88745.0,88739.0,0.09111019]
[1766739512174,0.02254824,88745.0,88739.0,0.09111019]
[1766739512340,0.01128,88745.0,88739.0,0.09111019]
[1766739513154,0.02254824,88745.0,88739.0,0.09111019]
[1766739513767,0.01128,88745.0,88739.0,0.09111019]
[1766739513963,0.02254824,88745.0,88739.0,0.09111019]
[1766739514171,0.01128,88745.0,88739.0,0.09111019]
[1766739515299,0.01128,88745.0,88736.0,1e-08]
[1766739516030,0.01126937,88732.0,88661.0,0.02254919]
[1766739516167,0.02254824,88745.0,88661.0,0.02254919]
[1766739516370,0.02254824,88745.0,88729.0,0.06911]
[1766739516934,0.02254824,88745.0,88734.0,1e-08]
[1766739517054,0.02254824,88745.0,88733.0,1e-08]
[1766739517266,0.01128,88745.0,88730.0,1e-08]
[1766739517550,0.02254824,88745.0,88730.0,1e-08]
[1766739517718,0.01128,88745.0,88731.0,0.06911]
[1766739517933,0.01126849,88743.0,88735.0,0.01117165]
[1766739518076,0.01126849,88743.0,88734.0,0.01126963]
[1766739518077,0.07058,88742.0,88734.0,0.01126963]
[1766739518430,0.07058,88742.0,88733.0,0.01126976]
[1766739519110,0.08184862,88742.0,88733.0,0.01126976]
[1766739519310,0.08184862,88742.0,88732.0,0.01126989]
[1766739519515,0.08184874,88741.0,88731.0,0.01127001]
[1766739519929,0.07058,88741.0,88731.0,0.01127001]
[1766739520132,0.08184874,88741.0,88731.0,0.01127001]
[1766739520701,0.01126887,88740.0,88731.0,0.01127001]
[1766739520906,0.07058,88740.0,88730.0,1e-08]
[1766739521371,0.08184887,88740.0,88730.0,0.01127015]
[1766739521746,0.07058,88740.0,88730.0,0.01127015]
[1766739521944,0.07058,88740.0,88731.0,0.01127001]
[1766739522377,0.07058,88740.0,88732.0,0.01126989]
[1766739522562,0.06166,88740.0,88731.0,0.01127001]
[1766739523332,0.07292887,88740.0,88730.0,0.01127015]
[1766739523759,0.011269,88739.0,88730.0,1e-08]
[1766739524397,0.01126912,88738.0,88730.0,1e-08]
[1766739525320,0.06761592,88737.0,88730.0,1e-08]
[1766739525524,0.06761476,88738.0,88730.0,1e-08]
[1766739525525,0.08025912,88738.0,88730.0,1e-08]
[1766739525759,0.06899,88738.0,88730.0,1e-08]
[1766739527216,0.08025912,88738.0,88730.0,1e-08]
[1766739528331,0.06899,88738.0,88730.0,1e-08]
[1766739528529,0.08025912,88738.0,88730.0,1e-08]
[1766739528839,0.01126938,88736.0,88730.0,1e-08]
[1766739529188,0.01126925,88737.0,88730.0,1e-08]
[1766739529391,0.01126938,88736.0,88730.0,1e-08]
[1766739529593,0.08025912,88738.0,88730.0,1e-08]
[1766739529843,0.01126938,88736.0,88730.0,1e-08]
[1766739530047,0.13660533,88738.0,88730.0,1e-08]
[1766739530505,0.01126938,88736.0,88730.0,1e-08]
[1766739530930,0.01126925,88737.0,88730.0,1e-08]
[1766739531091,0.01126938,88736.0,88730.0,1e-08]
[1766739531274,0.05634982,88732.0,88730.0,1e-08]
[1766739532523,0.06138027,88729.0,88725.0,0.02254919]
[1766739532679,0.01127039,88728.0,88725.0,0.02200019]
[1766739532880,0.06762252,88728.0,88725.0,1.9e-07]
[1766739533297,0.06762252,88728.0,88725.0,0.06774019]
[1766739533298,0.01127039,88728.0,88725.0,0.06774019]
[1766739533474,0.01127039,88728.0,88725.0,1.9e-07]
[1766739534078,0.01127027,88729.0,88725.0,1.9e-07]
[1766739534322,2.7e-07,88729.0,88725.0,1.9e-07]
[1766739534703,0.01127054,88729.0,88725.0,1.9e-07]
[1766739534903,2.7e-07,88729.0,88725.0,1.9e-07]
[1766739535654,0.01127054,88729.0,88725.0,1.9e-07]
[1766739536439,2.7e-07,88729.0,88725.0,1.9e-07]
[1766739537512,0.01127054,88729.0,88725.0,1.9e-07]
[1766739537852,2.7e-07,88729.0,88725.0,1.9e-07]
[1766739542062,2.7e-07,88729.0,88728.0,0.02254919]
[1766739542266,2.7e-07,88729.0,88716.0,0.01127192]
[1766739542520,0.01127116,88722.0,88718.0,0.01127919]
[1766739542728,0.01127116,88722.0,88713.0,0.0225523]
[1766739542911,0.01127116,88722.0,88713.0,0.01128]
[1766739542912,0.06762733,88722.0,88713.0,0.01128]
[1766739543249,0.01127116,88722.0,88713.0,0.01128]
[1766739543697,0.01127103,88723.0,88713.0,0.0225523]
[1766739544215,0.0112709,88724.0,88714.0,0.01127217]
[1766739544711,0.01127116,88722.0,88713.0,0.0225523]
[1766739544918,0.01127103,88723.0,88713.0,0.0225523]
[1766739545760,0.01127116,88722.0,88713.0,0.01128]
[1766739546142,0.01127103,88723.0,88713.0,0.0225523]
[1766739546348,0.0112709,88724.0,88714.0,0.01127217]
[1766739546556,0.01127078,88725.0,88714.0,0.01127217]
[1766739546748,0.01127065,88726.0,88714.0,0.01127217]
[1766739546956,0.01127065,88726.0,88715.0,0.06774]
[1766739547157,0.01127065,88726.0,88718.0,0.06774]
[1766739547353,0.01127078,88725.0,88718.0,0.06774]
[1766739547558,0.04305,88752.0,88716.0,0.01127192]
[1766739547903,0.05634786,88735.0,88725.0,0.02254919]
[1766739548057,0.02254963,88734.0,88725.0,0.02254919]
[1766739548273,0.02254963,88734.0,88726.0,0.06774]
[1766739549368,0.01126976,88733.0,88726.0,0.06774]
[1766739549570,0.02254963,88734.0,88726.0,0.06774]
[1766739550675,0.01128,88734.0,88726.0,0.06774]
[1766739551077,0.01126925,88737.0,88727.0,0.06774]
[1766739551279,0.01128,88733.0,88727.0,0.07901052]
[1766739551506,0.01128,88733.0,88727.0,0.06774]
[1766739552218,0.01128,88733.0,88727.0,0.07901052]
[1766739552520,0.01128,88733.0,88726.0,0.01127065]
[1766739552726,0.08027,88733.0,88727.0,5.2e-07]
[1766739553458,0.08027,88733.0,88728.0,0.01127039]
[1766739553614,0.079721,88733.0,88728.0,0.01127039]
[1766739554619,0.010731,88733.0,88730.0,0.01127014]
[1766739554818,0.07017,88739.0,88730.0,0.01127014]
[1766739555019,0.01128,88738.0,88730.0,0.01127015]
[1766739555218,0.02254912,88738.0,88730.0,1e-08]
[1766739555425,0.01128,88738.0,88730.0,1e-08]
[1766739555601,0.02254912,88738.0,88730.0,1e-08]
[1766739555801,0.01126925,88737.0,88730.0,1e-08]
[1766739556011,0.08143925,88737.0,88730.0,1e-08]
[1766739556209,0.07017,88737.0,88730.0,1e-08]
[1766739556409,0.01126938,88736.0,88730.0,1e-08]
[1766739556614,0.08143925,88737.0,88730.0,1e-08]
[1766739556820,0.07017,88737.0,88730.0,1e-08]
[1766739557133,0.08143925,88737.0,88730.0,1e-08]
[1766739558419,0.01128,88736.0,88730.0,1e-08]
[1766739558917,0.08145,88736.0,88730.0,1e-08]
[1766739559513,0.07017,88736.0,88730.0,1e-08]
[1766739559756,0.07017,88736.0,88730.0,0.01127015]
[1766739560317,0.07017,88736.0,88733.0,0.06761828]
[1766739560520,0.07017,88736.0,88733.0,0.01126976]
[1766739562253,0.07041508,88757.0,88736.0,0.07474]
[1766739562410,0.07041508,88757.0,88744.0,0.08600836]
[1766739562411,0.08168179,88757.0,88744.0,0.08600836]
[1766739562612,0.07017,88755.0,88745.0,0.01126824]
[1766739562810,0.07017,88755.0,88743.0,3e-07]
[1766739563209,0.01126747,88751.0,88743.0,3e-07]
[1766739563421,0.0112676,88750.0,88743.0,3e-07]
[1766739563623,0.0112676,88750.0,88739.0,0.03382919]
[1766739563624,0.01126773,88749.0,88739.0,0.02254919]
[1766739564497,0.01126773,88749.0,88740.0,0.01126887]
[1766739564876,0.01126773,88749.0,88739.0,0.03381819]
[1766739565042,0.01126773,88749.0,88740.0,0.01126887]
[1766739565245,0.01126773,88749.0,88739.0,0.03381819]
[1766739565558,0.01126824,88745.0,88736.0,0.01128]
[1766739565761,0.000549,88739.0,88733.0,0.01126976]
[1766739565961,0.06760915,88746.0,88736.0,0.02254919]
[1766739565962,0.01126811,88746.0,88736.0,0.02254919]
[1766739566169,0.01128,88749.0,88737.0,0.06761553]
[1766739566335,0.02254773,88749.0,88739.0,0.011269]
[1766739566535,0.01128,88749.0,88740.0,0.01126887]
[1766739566832,0.02254773,88749.0,88738.0,0.01126912]
[1766739567483,0.01126811,88746.0,88736.0,0.03381857]
[1766739567721,0.01126824,88745.0,88736.0,0.02254919]
[1766739567922,0.01126811,88746.0,88736.0,0.02254919]
[1766739568277,0.067608,88747.0,88736.0,0.03381857]
[1766739568487,0.01126811,88746.0,88737.0,0.01126925]
[1766739568690,0.01126811,88746.0,88736.0,0.03381857]
[1766739569034,0.01126798,88747.0,88737.0,0.01126925]
[1766739569506,0.01126798,88747.0,88738.0,0.01126912]
[1766739569710,0.01126811,88746.0,88736.0,0.03381857]
[1766739569912,0.01126798,88747.0,88737.0,0.01126925]
[1766739570066,0.01126811,88746.0,88736.0,0.03381857]
[1766739570424,0.01126773,88749.0,88739.0,0.011269]
[1766739570775,0.01126773,88749.0,88737.0,0.01126925]
[1766739570980,0.01126773,88749.0,88739.0,0.011269]
[1766739571178,0.0225476,88750.0,88740.0,0.01126887]
[1766739571406,0.01126773,88749.0,88739.0,0.011269]
[1766739571599,0.0225476,88750.0,88740.0,0.01126887]
[1766739571911,0.01128,88750.0,88742.0,0.01126862]
[1766739572491,0.01128,88750.0,88743.0,0.01126849]
[1766739572698,0.01128,88750.0,88742.0,0.01126862]
[1766739573645,0.01128,88750.0,88743.0,0.01126849]
[1766739573954,0.01128,88749.0,88743.0,0.01126849]
[1766739574302,0.01128,88749.0,88742.0,0.01126862]
[1766739574754,0.01128,88749.0,88743.0,0.01126849]
[1766739575132,0.01128,88749.0,88742.0,0.01126862]
[1766739575431,0.01128,88749.0,88743.0,0.01126849]
[1766739575925,0.01128,88749.0,88740.0,0.01126887]
[1766739576954,0.02254773,88749.0,88739.0,0.011269]
[1766739577157,0.01126785,88748.0,88738.0,0.01126912]
[1766739577761,0.01126773,88749.0,88740.0,0.01126887]
[1766739577957,0.01126773,88749.0,88739.0,0.06761401]
[1766739578099,0.01128,88748.0,88740.0,0.01126887]
[1766739578505,0.01128,88748.0,88739.0,0.011269]
[1766739578737,0.01128,88748.0,88740.0,0.01126887]
[1766739578938,0.01128,88748.0,88739.0,0.011269]
[1766739579523,0.01128,88748.0,88740.0,0.01126887]
[1766739580184,0.01128,88748.0,88741.0,0.01126874]
[1766739580389,0.01128,88755.0,88740.0,0.08600887]
[1766739580546,0.01126735,88752.0,88748.0,0.00055]
[1766739580746,0.01126747,88751.0,88748.0,0.00055]
[1766739581071,0.01126836,88744.0,88733.0,0.07474]
[1766739581409,0.01126824,88745.0,88733.0,0.01126976]
[1766739581614,0.01126836,88744.0,88734.0,0.01126963]
[1766739582476,0.01126836,88744.0,88735.0,0.01126951]
[1766739582883,0.01126824,88745.0,88735.0,0.01126951]
[1766739583082,0.02254811,88746.0,88736.0,0.03381857]
[1766739583269,0.01128,88746.0,88737.0,0.01126925]
[1766739583473,0.01128,88746.0,88739.0,0.02254919]
[1766739583474,0.02254811,88746.0,88739.0,0.02254919]
[1766739583823,0.02254811,88746.0,88740.0,0.02254919]
[1766739583988,0.01126824,88745.0,88740.0,0.02254919]
[1766739584171,0.01126824,88745.0,88740.0,0.02200019]
[1766739584758,0.01126824,88745.0,88740.0,0.00378068]
[1766739585878,0.01126836,88744.0,88740.0,6.8e-07]
[1766739589137,0.01126824,88745.0,88740.0,6.8e-07]
[1766739589337,0.01126836,88744.0,88740.0,6.8e-07]
[1766739589656,0.01126824,88745.0,88740.0,6.8e-07]
[1766739591474,0.01126824,88745.0,88741.0,0.02254919]
[1766739591777,0.02254811,88746.0,88741.0,0.02254919]
[1766739592376,0.01126824,88745.0,88741.0,0.02254919]
[1766739592573,0.01126836,88744.0,88741.0,0.02254919]
[1766739592774,0.01126836,88744.0,88734.0,0.01126963]
[1766739593097,0.01126836,88744.0,88740.0,0.02254919]
[1766739593238,0.01126849,88743.0,88740.0,0.02254919]
[1766739593439,0.01126862,88742.0,88730.0,1e-08]
[1766739593667,0.01126925,88737.0,88730.0,1e-08]
[1766739594185,0.01126938,88736.0,88730.0,1e-08]
[1766739594727,0.01126925,88737.0,88730.0,1e-08]
[1766739594946,0.02254912,88738.0,88730.0,1e-08]
[1766739595494,0.01126925,88737.0,88730.0,1e-08]
[1766739597579,0.01128,88738.0,88730.0,0.01127015]
[1766739597984,0.01128,88738.0,88732.0,0.01126989]
[1766739598186,0.01128,88738.0,88731.0,0.01127001]
[1766739598403,0.010731,88738.0,88732.0,0.01126989]
[1766739598822,0.010731,88738.0,88733.0,0.01126976]
[1766739600041,0.010731,88738.0,88734.0,0.01126963]
[1766739600238,0.010731,88738.0,88730.0,0.01127015]
[1766739600401,0.010731,88738.0,88723.0,0.01128]